bitfinex-derivatives/quotes_BNBF0:USTF0_20250608
["timestamp","ask_amount","ask_price","bid_price","bid_amount"]
[1749417144846,1.10732933,655.8,655.1,0.3052969]
[1749417145046,1.10732933,655.79,655.1,0.3052969]
[1749417145244,1.10732933,655.78,655.1,0.3052969]
[1749417145444,1.10732933,655.77,655.1,0.3052969]
[1749417145647,1.10732933,655.76,655.1,0.3052969]
[1749417145844,1.10732933,655.75,655.1,0.3052969]
[1749417146046,0.26543408,655.81,655.1,0.3052969]
[1749417146345,1.10761039,655.8,655.1,0.3052969]
[1749417146553,1.10761039,655.79,655.1,0.3052969]
[1749417146747,1.10761039,655.78,655.1,0.3052969]
[1749417146945,1.10761039,655.77,655.1,0.3052969]
[1749417147152,1.10761039,655.76,655.1,0.3052969]
[1749417147347,0.26543408,655.81,655.1,0.3052969]
[1749417147552,1.1073544,655.8,655.1,0.3052969]
[1749417147851,1.1073544,655.79,655.1,0.3052969]
[1749417148052,1.1073544,655.78,655.1,0.3052969]
[1749417148251,1.1073544,655.77,655.1,0.3052969]
[1749417148551,1.1073544,655.76,655.1,0.3052969]
[1749417148752,0.26543408,655.81,655.1,0.3052969]
[1749417148949,1.10728129,655.8,655.1,0.3052969]
[1749417149148,1.10728129,655.79,655.1,0.3052969]
[1749417149349,1.10728129,655.78,655.1,0.3052969]
[1749417149649,1.10728129,655.77,655.1,0.3052969]
[1749417149854,0.26543408,655.81,655.1,0.3052969]
[1749417150054,1.10717284,655.8,655.1,0.3052969]
[1749417150252,1.10717284,655.79,655.1,0.3052969]
[1749417150455,1.10717284,655.78,655.1,0.3052969]
[1749417150652,1.10717284,655.77,655.1,0.3052969]
[1749417150952,0.26543408,655.81,655.1,0.3052969]
[1749417151154,1.10711984,655.8,655.1,0.3052969]
[1749417151352,1.10711984,655.79,655.1,0.3052969]
[1749417151552,1.10711984,655.78,655.1,0.3052969]
[1749417151851,0.26543408,655.81,655.1,0.3052969]
[1749417152156,1.10704658,655.8,655.1,0.3052969]
[1749417152351,1.10704658,655.79,655.1,0.3052969]
[1749417152551,0.26543408,655.81,655.1,0.3052969]
[1749417152756,1.10698318,655.8,655.1,0.3052969]
[1749417152956,0.26543408,655.81,655.1,0.3052969]
[1749417153153,1.10698558,655.8,655.1,0.3052969]
[1749417153355,0.26543408,655.81,655.1,0.3052969]
[1749417153552,1.10693687,655.8,655.1,0.3052969]
[1749417153752,0.26543408,655.81,655.1,0.3052969]
[1749417153957,1.10692175,655.8,655.1,0.3052969]
[1749417154257,0.26543408,655.81,655.1,0.3052969]
[1749417155954,1.10691885,655.8,655.1,0.3052969]
[1749417156257,0.26543408,655.81,655.1,0.3052969]
[1749417156258,1.10691885,655.79,655.1,0.3052969]
[1749417156458,1.10691885,655.78,655.1,0.3052969]
[1749417156757,0.26543408,655.81,655.1,0.3052969]
[1749417156957,1.106712,655.8,655.1,0.3052969]
[1749417157159,1.106712,655.79,655.1,0.3052969]
[1749417157355,1.106712,655.78,655.1,0.3052969]
[1749417157553,1.106712,655.77,655.1,0.3052969]
[1749417157857,1.106712,655.76,655.1,0.3052969]
[1749417158052,1.106712,655.75,655.1,0.3052969]
[1749417158357,1.106712,655.74,655.1,0.3052969]
[1749417158557,1.106712,655.73,655.1,0.3052969]
[1749417158757,0.26543408,655.81,655.1,0.3052969]
[1749417159054,1.10648922,655.8,655.1,0.3052969]
[1749417159258,1.10648922,655.79,655.1,0.3052969]
[1749417159452,1.10648922,655.78,655.1,0.3052969]
[1749417159656,1.10648922,655.77,655.1,0.3052969]
[1749417159854,1.10648922,655.76,655.1,0.3052969]
[1749417160054,1.10648922,655.75,655.1,0.3052969]
[1749417160254,0.26543408,655.81,655.1,0.3052969]
[1749417160255,1.10648922,655.8,655.1,0.3052969]
[1749417160456,1.10648922,655.79,655.1,0.3052969]
[1749417160652,1.10648922,655.78,655.1,0.3052969]
[1749417160855,1.10648922,655.77,655.1,0.3052969]
[1749417161057,1.10648922,655.76,655.1,0.3052969]
[1749417161258,1.10648922,655.8,655.1,0.3052969]
[1749417161458,1.10648922,655.79,655.1,0.3052969]
[1749417161755,1.10648922,655.78,655.1,0.3052969]
[1749417161954,1.10648922,655.77,655.1,0.3052969]
[1749417162158,1.10648922,655.76,655.1,0.3052969]
[1749417162351,0.26543408,655.81,655.1,0.3052969]
[1749417162352,1.10648922,655.8,655.1,0.3052969]
[1749417162557,1.10648922,655.79,655.1,0.3052969]
[1749417162753,1.10648922,655.78,655.1,0.3052969]
[1749417162957,1.10648922,655.77,655.1,0.3052969]
[1749417163154,1.10648922,655.8,655.1,0.3052969]
[1749417163359,1.10648922,655.79,655.1,0.3052969]
[1749417163655,0.26543408,655.81,655.1,0.3052969]
[1749417163656,1.10648922,655.78,655.1,0.3052969]
[1749417163854,1.10648922,655.8,655.1,0.3052969]
[1749417164054,1.10648922,655.79,655.1,0.3052969]
[1749417164255,1.10648922,655.78,655.1,0.3052969]
[1749417164460,1.10648922,655.77,655.1,0.3052969]
[1749417164757,1.10648922,655.76,655.1,0.3052969]
[1749417164959,1.10648922,655.75,655.1,0.3052969]
[1749417165160,1.10648922,655.74,655.1,0.3052969]
[1749417165461,1.10648922,655.73,655.1,0.3052969]
[1749417165661,1.10648922,655.8,655.1,0.3052969]
[1749417165861,1.10648922,655.79,655.1,0.3052969]
[1749417166057,1.10648922,655.78,655.1,0.3052969]
[1749417166261,1.10648922,655.77,655.1,0.3052969]
[1749417166458,1.10648922,655.76,655.1,0.3052969]
[1749417166658,1.10648922,655.8,655.1,0.3052969]
[1749417166857,1.10648922,655.79,655.1,0.3052969]
[1749417167161,1.10648922,655.78,655.1,0.3052969]
[1749417167457,1.10648922,655.77,655.1,0.3052969]
[1749417167661,1.10648922,655.8,655.1,0.3052969]
[1749417167856,0.26543408,655.81,655.1,0.3052969]
[1749417167857,1.10648922,655.79,655.1,0.3052969]
[1749417168057,1.10648922,655.78,655.1,0.3052969]
[1749417168260,1.10648922,655.77,655.1,0.3052969]
[1749417168459,1.10648922,655.8,655.1,0.3052969]
[1749417168662,1.10648922,655.79,655.1,0.3052969]
[1749417168863,1.10648922,655.78,655.1,0.3052969]
[1749417169060,1.10648922,655.77,655.1,0.3052969]
[1749417169363,0.26543408,655.81,655.1,0.3052969]
[1749417169364,1.10648922,655.8,655.1,0.3052969]
[1749417169561,1.10648922,655.79,655.1,0.3052969]
[1749417169759,1.10648922,655.78,655.1,0.3052969]
[1749417169963,1.10648922,655.8,655.1,0.3052969]
[1749417170161,1.10648922,655.79,655.1,0.3052969]
[1749417170362,1.10648922,655.78,655.1,0.3052969]
[1749417170562,1.10648922,655.8,655.1,0.3052969]
[1749417170767,1.10648922,655.79,655.1,0.3052969]
[1749417170968,1.10648922,655.78,655.1,0.3052969]
[1749417171164,1.10648922,655.8,655.1,0.3052969]
[1749417171365,1.10648922,655.79,655.1,0.3052969]
[1749417171565,1.10648922,655.78,655.1,0.3052969]
[1749417171768,1.10648922,655.8,655.1,0.3052969]
[1749417171969,1.10648922,655.79,655.1,0.3052969]
[1749417172269,1.10648922,655.78,655.1,0.3052969]
[1749417172465,1.10648922,655.8,655.1,0.3052969]
[1749417172665,1.10648922,655.79,655.1,0.3052969]
[1749417172867,1.10648922,655.78,655.1,0.3052969]
[1749417173065,1.10648922,655.8,655.1,0.3052969]
[1749417173269,1.10648922,655.79,655.1,0.3052969]
[1749417173569,1.10648922,655.8,655.1,0.3052969]
[1749417173769,1.10648922,655.79,655.1,0.3052969]
[1749417173966,1.10648922,655.8,655.1,0.3052969]
[1749417174165,1.10648922,655.79,655.1,0.3052969]
[1749417174369,1.10648922,655.78,655.1,0.3052969]
[1749417174566,1.10648922,655.8,655.1,0.3052969]
[1749417174770,1.10648922,655.79,655.1,0.3052969]
[1749417174968,1.10648922,655.78,655.1,0.3052969]
[1749417175168,1.10648922,655.8,655.1,0.3052969]
[1749417175367,1.10648922,655.79,655.1,0.3052969]
[1749417175667,1.10648922,655.8,655.1,0.3052969]
[1749417175870,1.10648922,655.79,655.1,0.3052969]
[1749417176066,1.10648922,655.8,655.1,0.3052969]
[1749417176266,1.10648922,655.79,655.1,0.3052969]
[1749417176469,1.10648922,655.8,655.1,0.3052969]
[1749417176666,1.10648922,655.79,655.1,0.3052969]
[1749417176970,1.10648922,655.8,655.1,0.3052969]
[1749417177171,1.10648922,655.79,655.1,0.3052969]
[1749417177370,1.10648922,655.8,655.1,0.3052969]
[1749417177667,1.10648922,655.79,655.1,0.3052969]
[1749417177871,1.10648922,655.8,655.1,0.3052969]
[1749417178068,1.10648922,655.79,655.1,0.3052969]
[1749417178371,0.26543408,655.81,655.1,0.3052969]
[1749417178372,1.10648922,655.8,655.1,0.3052969]
[1749417178671,1.10648922,655.79,655.1,0.3052969]
[1749417178871,1.10648922,655.8,655.1,0.3052969]
[1749417179073,1.10648922,655.79,655.1,0.3052969]
[1749417179273,1.10648922,655.8,655.1,0.3052969]
[1749417184377,0.26543408,655.81,655.1,0.3052969]
[1749417187479,1.3719233,655.81,655.1,0.3052969]
[1749417187677,0.26543408,655.81,655.1,0.3052969]
[1749417189385,1.10648922,655.8,655.1,0.3052969]
[1749417191382,1.10648922,655.79,655.1,0.3052969]
[1749417191582,1.10648922,655.8,655.1,0.3052969]
[1749417191782,1.10648922,655.79,655.1,0.3052969]
[1749417191982,1.10648922,655.8,655.1,0.3052969]
[1749417192182,1.10648922,655.79,655.1,0.3052969]
[1749417192386,1.10648922,655.8,655.1,0.3052969]
[1749417192583,1.10648922,655.79,655.1,0.3052969]
[1749417192782,1.10648922,655.8,655.1,0.3052969]
[1749417192988,1.10648922,655.79,655.1,0.3052969]
[1749417193192,1.10648922,655.8,655.1,0.3052969]
[1749417193382,1.10648922,655.79,655.1,0.3052969]
[1749417193584,1.10648922,655.78,655.1,0.3052969]
[1749417193783,1.10648922,655.8,655.1,0.3052969]
[1749417194084,1.10648922,655.79,655.1,0.3052969]
[1749417194384,1.10648922,655.78,655.1,0.3052969]
[1749417194683,1.10648922,655.77,655.1,0.3052969]
[1749417194889,1.10648922,655.76,655.1,0.3052969]
[1749417195085,1.10648922,655.75,655.1,0.3052969]
[1749417195290,1.10648922,655.74,655.1,0.3052969]
[1749417195586,0.26543408,655.81,655.1,0.3052969]
[1749417195587,1.10648922,655.8,655.1,0.3052969]
[1749417195789,1.10648922,655.79,655.1,0.3052969]
[1749417195986,1.10648922,655.78,655.1,0.3052969]
[1749417196286,1.10648922,655.77,655.1,0.3052969]
[1749417196590,1.10648922,655.76,655.1,0.3052969]
[1749417196889,1.10648922,655.75,655.1,0.3052969]
[1749417197186,1.10648922,655.74,655.1,0.3052969]
[1749417197386,1.10648922,655.73,655.1,0.3052969]
[1749417197690,1.10648922,655.8,655.1,0.3052969]
[1749417197891,1.10648922,655.79,655.1,0.3052969]
[1749417198089,1.10648922,655.78,655.1,0.3052969]
[1749417198291,1.10648922,655.77,655.1,0.3052969]
[1749417198490,1.10648922,655.76,655.1,0.3052969]
[1749417198790,1.10648922,655.75,655.1,0.3052969]
[1749417198987,1.10648922,655.74,655.1,0.3052969]
[1749417199188,1.10648922,655.73,655.1,0.3052969]
[1749417199386,1.10648922,655.72,655.1,0.3052969]
[1749417199589,1.10648922,655.71,655.1,0.3052969]
[1749417199888,1.10648922,655.7,655.1,0.3052969]
[1749417200089,1.10648922,655.69,655.1,0.3052969]
[1749417200290,1.10648922,655.68,655.1,0.3052969]
[1749417200489,1.10648922,655.67,655.1,0.3052969]
[1749417200692,1.10648922,655.66,655.1,0.3052969]
[1749417200896,1.10648922,655.65,655.1,0.3052969]
[1749417201097,0.26543408,655.81,655.1,0.3052969]
[1749417201393,1.09756425,655.8,655.1,0.3052969]
[1749417201695,1.09756425,655.79,655.1,0.3052969]
[1749417201897,1.09756425,655.78,655.1,0.3052969]
[1749417202095,1.09756425,655.77,655.1,0.3052969]
[1749417202294,1.09756425,655.76,655.1,0.3052969]
[1749417202494,1.09756425,655.75,655.1,0.3052969]
[1749417202694,1.09756425,655.74,655.1,0.3052969]
[1749417202898,1.09756425,655.73,655.1,0.3052969]
[1749417203098,1.09756425,655.72,655.1,0.3052969]
[1749417203294,1.09756425,655.71,655.1,0.3052969]
[1749417203494,1.09756425,655.7,655.1,0.3052969]
[1749417203793,1.09756425,655.69,655.1,0.3052969]
[1749417203995,1.09756425,655.68,655.1,0.3052969]
[1749417204199,1.09756425,655.67,655.1,0.3052969]
[1749417204499,1.09756425,655.66,655.1,0.3052969]
[1749417204694,0.26543408,655.81,655.1,0.3052969]
[1749417204695,1.09756425,655.65,655.1,0.3052969]
[1749417204899,1.09756425,655.64,655.1,0.3052969]
[1749417205199,0.26543408,655.81,655.1,0.3052969]
[1749417205395,1.09785107,655.8,655.1,0.3052969]
[1749417205599,1.09785107,655.79,655.1,0.3052969]
[1749417205899,1.09785107,655.78,655.1,0.3052969]
[1749417206097,1.09785107,655.77,655.1,0.3052969]
[1749417206395,1.09785107,655.76,655.1,0.3052969]
[1749417206599,1.09785107,655.75,655.1,0.3052969]
[1749417206800,1.09785107,655.74,655.1,0.3052969]
[1749417206998,1.09785107,655.73,655.1,0.3052969]
[1749417207197,1.09785107,655.72,655.1,0.3052969]
[1749417207401,1.09785107,655.71,655.1,0.3052969]
[1749417207701,1.09785107,655.7,655.1,0.3052969]
[1749417207997,1.09785107,655.69,655.1,0.3052969]
[1749417208200,1.09785107,655.68,655.1,0.3052969]
[1749417208397,1.09785107,655.67,655.1,0.3052969]
[1749417208598,1.09785107,655.66,655.1,0.3052969]
[1749417208898,1.09785107,655.65,655.1,0.3052969]
[1749417209201,0.26543408,655.81,655.1,0.3052969]
[1749417209401,1.09739422,655.8,655.1,0.3052969]
[1749417209597,1.09739422,655.79,655.1,0.3052969]
[1749417209797,1.09739422,655.78,655.1,0.3052969]
[1749417209998,1.09739422,655.77,655.1,0.3052969]
[1749417210199,1.09739422,655.76,655.1,0.3052969]
[1749417210397,1.09739422,655.75,655.1,0.3052969]
[1749417210699,1.09739422,655.74,655.1,0.3052969]
[1749417210900,1.09739422,655.73,655.1,0.3052969]
[1749417211098,1.09739422,655.72,655.1,0.3052969]
[1749417211298,1.09739422,655.71,655.1,0.3052969]
[1749417211597,1.09739422,655.7,655.1,0.3052969]
[1749417211797,1.09739422,655.69,655.1,0.3052969]
[1749417211999,1.09739422,655.68,655.1,0.3052969]
[1749417212200,1.09739422,655.67,655.1,0.3052969]
[1749417212401,1.09739422,655.66,655.1,0.3052969]
[1749417212598,1.09739422,655.65,655.1,0.3052969]
[1749417212800,0.26543408,655.81,655.1,0.3052969]
[1749417212801,1.09739422,655.64,655.1,0.3052969]
[1749417212997,0.26543408,655.81,655.1,0.3052969]
[1749417213203,1.09772356,655.8,655.1,0.3052969]
[1749417213401,1.09772356,655.79,655.1,0.3052969]
[1749417213701,0.26543408,655.81,655.1,0.3052969]
[1749417213702,1.09772356,655.78,655.1,0.3052969]
[1749417214000,1.09772356,655.77,655.1,0.3052969]
[1749417214305,1.09772356,655.76,655.1,0.3052969]
[1749417214503,1.09772356,655.75,655.1,0.3052969]
[1749417214701,1.09772356,655.74,655.1,0.3052969]
[1749417214900,1.09772356,655.73,655.1,0.3052969]
[1749417215205,0.26549989,655.59,655.1,0.3052969]
[1749417245625,1.09647205,655.58,655.1,0.3052969]
[1749417245818,1.09647205,655.57,655.1,0.3052969]
[1749417246120,1.09647205,655.56,655.1,0.3052969]
[1749417246319,1.09647205,655.55,654.47,0.26548673]
[1749417246519,1.09647205,655.54,654.49,0.30558144]
[1749417246819,1.09647205,655.53,654.49,0.30558144]
[1749417247019,0.26549989,655.59,654.49,0.30558144]
[1749417247320,1.09646171,655.58,654.49,0.30558144]
[1749417247519,1.09646171,655.57,654.49,0.30558144]
[1749417247723,1.09646171,655.56,654.49,0.30558144]
[1749417247923,1.09646171,655.55,654.49,0.30558144]
[1749417248119,1.09646171,655.54,654.49,0.30558144]
[1749417248320,1.09646171,655.53,654.49,0.30558144]
[1749417248521,0.26549989,655.59,654.49,0.30558144]
[1749417248721,1.09632654,655.58,654.49,0.30558144]
[1749417248921,1.09632654,655.57,654.49,0.30558144]
[1749417249126,1.09632654,655.56,654.49,0.30558144]
[1749417249322,0.26549989,655.59,654.49,0.30558144]
[1749417249323,1.09632654,655.55,654.49,0.30558144]
[1749417249525,1.09632654,655.54,654.49,0.30558144]
[1749417249725,0.26549989,655.59,654.49,0.30558144]
[1749417250022,1.09627852,655.58,654.49,0.30558144]
[1749417250225,1.09627852,655.57,654.49,0.30558144]
[1749417250424,1.09627852,655.56,654.49,0.30558144]
[1749417250729,1.09627852,655.55,654.49,0.30558144]
[1749417250929,1.09627852,655.54,654.49,0.30558144]
[1749417251125,0.26549989,655.59,654.49,0.30558144]
[1749417251329,1.09618168,655.58,654.49,0.30558144]
[1749417251525,1.09618168,655.57,654.55,3.80364939]
[1749417251728,1.09618168,655.56,654.57,0.30554409]
[1749417251927,1.09618168,655.55,654.57,0.30554409]
[1749417252126,0.26549989,655.59,654.57,0.30554409]
[1749417252324,1.09625589,655.58,654.57,0.30554409]
[1749417252527,1.09625589,655.57,654.57,0.30554409]
[1749417252726,1.09625589,655.56,654.57,0.30554409]
[1749417252924,1.09625589,655.55,654.57,0.30554409]
[1749417253125,0.26549989,655.59,654.57,0.30554409]
[1749417253325,1.09623207,655.58,654.57,0.30554409]
[1749417253627,1.09623207,655.57,654.57,0.30554409]
[1749417253826,1.09623207,655.56,654.57,0.30554409]
[1749417254028,1.09623207,655.55,654.57,0.30554409]
[1749417254330,0.26549989,655.59,654.57,0.30554409]
[1749417254626,1.09621691,655.58,654.57,0.30554409]
[1749417254827,1.09621691,655.57,654.57,0.30554409]
[1749417255027,0.26549989,655.59,654.57,0.30554409]
[1749417255229,1.09619119,655.58,654.57,0.30554409]
[1749417255428,1.09619119,655.57,654.57,0.30554409]
[1749417255626,1.09619119,655.56,654.57,0.30554409]
[1749417255831,1.09619119,655.55,654.57,0.30554409]
[1749417256028,0.26549989,655.59,654.57,0.30554409]
[1749417256228,1.09623145,655.58,654.57,0.30554409]
[1749417256427,1.09623145,655.57,654.57,0.30554409]
[1749417256628,1.09623145,655.56,654.57,0.30554409]
[1749417256827,1.09623145,655.55,654.57,0.30554409]
[1749417257031,0.26549989,655.59,654.57,0.30554409]
[1749417257230,1.09625134,655.58,654.57,0.30554409]
[1749417257428,1.09625134,655.57,654.57,0.30554409]
[1749417257733,1.09625134,655.56,654.57,0.30554409]
[1749417257930,1.09625134,655.55,654.57,0.30554409]
[1749417258233,0.26549989,655.59,654.57,0.30554409]
[1749417258434,1.09616034,655.58,654.57,0.30554409]
[1749417258634,1.09616034,655.57,654.57,0.30554409]
[1749417258831,1.09616034,655.56,654.57,0.30554409]
[1749417259038,0.26549989,655.59,654.57,0.30554409]
[1749417259039,1.09616034,655.55,654.57,0.30554409]
[1749417259233,0.26549989,655.59,654.57,0.30554409]
[1749417259536,1.09612669,655.58,654.57,0.30554409]
[1749417259737,1.09612669,655.57,654.57,0.30554409]
[1749417259938,1.09612669,655.56,654.57,0.30554409]
[1749417260236,1.09612669,655.55,654.57,0.30554409]
[1749417260434,0.26549989,655.59,654.57,0.30554409]
[1749417260637,1.09591181,655.58,654.57,0.30554409]
[1749417260937,1.09591181,655.57,654.57,0.30554409]
[1749417261136,1.09591181,655.56,654.57,0.30554409]
[1749417261336,1.09591181,655.55,654.57,0.30554409]
[1749417261537,1.09591181,655.54,654.57,0.30554409]
[1749417261737,1.09591181,655.53,654.57,0.30554409]
[1749417261935,1.09591181,655.52,654.57,0.30554409]
[1749417262133,1.09591181,655.58,654.57,0.30554409]
[1749417262334,1.09591181,655.57,654.57,0.30554409]
[1749417262634,1.09591181,655.56,654.57,0.30554409]
[1749417262938,1.09591181,655.55,654.57,0.30554409]
[1749417263237,1.09591181,655.54,654.57,0.30554409]
[1749417263437,1.09591181,655.53,654.57,0.30554409]
[1749417263637,1.09591181,655.52,654.57,0.30554409]
[1749417263934,1.09591181,655.51,654.57,0.30554409]
[1749417264138,1.09591181,655.58,654.57,0.30554409]
[1749417264334,1.09591181,655.57,654.57,0.30554409]
[1749417264534,1.09591181,655.56,654.57,0.30554409]
[1749417264836,1.09591181,655.55,654.57,0.30554409]
[1749417265036,1.09591181,655.54,654.57,0.30554409]
[1749417265337,1.09591181,655.53,654.57,0.30554409]
[1749417265539,1.09591181,655.52,654.57,0.30554409]
[1749417265735,1.09591181,655.58,654.57,0.30554409]
[1749417265933,1.09591181,655.57,654.57,0.30554409]
[1749417266135,1.09591181,655.56,654.57,0.30554409]
[1749417266335,1.09591181,655.55,654.57,0.30554409]
[1749417266534,1.09591181,655.54,654.57,0.30554409]
[1749417266738,1.09591181,655.53,654.57,0.30554409]
[1749417267042,1.09591181,655.52,654.57,0.30554409]
[1749417267242,1.09591181,655.58,654.57,0.30554409]
[1749417267442,0.26549989,655.59,654.57,0.30554409]
[1749417267443,1.09591181,655.57,654.57,0.30554409]
[1749417267738,1.09591181,655.56,654.57,0.30554409]
[1749417267942,1.09591181,655.55,654.57,0.30554409]
[1749417268141,1.09591181,655.54,654.57,0.30554409]
[1749417268342,1.09591181,655.53,654.57,0.30554409]
[1749417268541,1.09591181,655.52,654.57,0.30554409]
[1749417268739,1.09591181,655.58,654.57,0.30554409]
[1749417268944,1.09591181,655.57,654.57,0.30554409]
[1749417269245,0.26549989,655.59,654.57,0.30554409]
[1749417269246,1.09591181,655.56,654.57,0.30554409]
[1749417269439,1.09591181,655.55,654.57,0.30554409]
[1749417269739,1.09591181,655.54,654.57,0.30554409]
[1749417269942,1.09591181,655.53,654.57,0.30554409]
[1749417270140,1.09591181,655.58,654.57,0.30554409]
[1749417270342,1.09591181,655.57,654.57,0.30554409]
[1749417270540,1.09591181,655.56,654.57,0.30554409]
[1749417270746,1.09591181,655.55,654.57,0.30554409]
[1749417270943,0.26549989,655.59,654.57,0.30554409]
[1749417270944,1.09591181,655.54,654.57,0.30554409]
[1749417271144,1.09591181,655.58,654.57,0.30554409]
[1749417271348,1.09591181,655.57,654.57,0.30554409]
[1749417271546,1.09591181,655.56,654.57,0.30554409]
[1749417271748,1.09591181,655.55,654.57,0.30554409]
[1749417271948,1.09591181,655.54,654.57,0.30554409]
[1749417272145,1.09591181,655.58,654.57,0.30554409]
[1749417272344,1.09591181,655.57,654.57,0.30554409]
[1749417272546,1.09591181,655.56,654.57,0.30554409]
[1749417272746,1.09591181,655.55,654.57,0.30554409]
[1749417273049,1.09591181,655.58,654.57,0.30554409]
[1749417273350,1.09591181,655.57,654.57,0.30554409]
[1749417273544,1.09591181,655.56,654.57,0.30554409]
[1749417273746,1.09591181,655.58,654.57,0.30554409]
[1749417274048,0.26549989,655.59,654.57,0.30554409]
[1749417274049,1.09591181,655.57,654.57,0.30554409]
[1749417274349,1.09591181,655.56,654.57,0.30554409]
[1749417274547,0.26549989,655.59,654.57,0.30554409]
[1749417284554,1.09591181,655.58,654.57,0.30554409]
[1749417284753,1.09591181,655.57,654.57,0.30554409]
[1749417284951,1.09591181,655.58,654.57,0.30554409]
[1749417285156,1.09591181,655.57,654.57,0.30554409]
[1749417285355,1.09591181,655.58,654.57,0.30554409]
[1749417285555,1.09591181,655.57,654.57,0.30554409]
[1749417285852,1.09591181,655.58,654.57,0.30554409]
[1749417286057,1.09591181,655.57,654.57,0.30554409]
[1749417286258,1.09591181,655.58,654.57,0.30554409]
[1749417286557,1.09591181,655.57,654.57,0.30554409]
[1749417286755,1.09591181,655.58,654.57,0.30554409]
[1749417287053,1.09591181,655.57,654.57,0.30554409]
[1749417287259,1.09591181,655.58,654.57,0.30554409]
[1749417287458,1.09591181,655.57,654.57,0.30554409]
[1749417287655,1.09591181,655.58,654.57,0.30554409]
[1749417287859,1.09591181,655.57,654.57,0.30554409]
[1749417288060,1.09591181,655.58,654.57,0.30554409]
[1749417288360,1.09591181,655.57,654.57,0.30554409]
[1749417288661,1.09591181,655.58,654.57,0.30554409]
[1749417288862,1.09591181,655.57,654.57,0.30554409]
[1749417289057,1.09591181,655.58,654.57,0.30554409]
[1749417290657,1.09591181,655.57,654.57,0.30554409]
[1749417290961,1.09591181,655.58,654.57,0.30554409]
[1749417291659,1.09591181,655.57,654.57,0.30554409]
[1749417291858,1.09591181,655.58,654.57,0.30554409]
[1749417292162,1.09591181,655.57,654.57,0.30554409]
[1749417292363,1.09591181,655.56,654.57,0.30554409]
[1749417292559,1.09591181,655.58,654.57,0.30554409]
[1749417292863,1.09591181,655.57,654.57,0.30554409]
[1749417293060,1.09591181,655.56,654.57,0.30554409]
[1749417293261,0.26549989,655.59,654.57,0.30554409]
[1749417293262,1.09591181,655.58,654.57,0.30554409]
[1749417293460,1.09591181,655.57,654.57,0.30554409]
[1749417293659,1.09591181,655.56,654.57,0.30554409]
[1749417293864,0.26549989,655.59,654.57,0.30554409]
[1749417294065,1.09591181,655.58,654.57,0.30554409]
[1749417294263,1.09591181,655.57,654.57,0.30554409]
[1749417294465,1.09591181,655.58,654.57,0.30554409]
[1749417294761,1.09591181,655.57,654.57,0.30554409]
[1749417295062,1.09591181,655.56,654.57,0.30554409]
[1749417295261,1.09591181,655.58,654.57,0.30554409]
[1749417295465,1.09591181,655.57,654.57,0.30554409]
[1749417295759,0.26549989,655.59,654.57,0.30554409]
[1749417295760,1.09591181,655.56,654.57,0.30554409]
[1749417295965,1.09591181,655.58,654.57,0.30554409]
[1749417296164,1.09591181,655.57,654.57,0.30554409]
[1749417296363,1.09591181,655.58,654.57,0.30554409]
[1749417296565,1.09591181,655.57,654.57,0.30554409]
[1749417296766,1.09591181,655.56,654.57,0.30554409]
[1749417296964,1.09591181,655.58,654.57,0.30554409]
[1749417297164,1.09591181,655.57,654.57,0.30554409]
[1749417297365,1.09591181,655.56,654.57,0.30554409]
[1749417297663,1.09591181,655.55,654.57,0.30554409]
[1749417297863,0.26549989,655.59,654.57,0.30554409]
[1749417298162,1.10404393,655.58,654.57,0.30554409]
[1749417298366,1.10404393,655.57,654.57,0.30554409]
[1749417298565,1.10404393,655.56,654.57,0.30554409]
[1749417298761,1.10404393,655.55,654.57,0.30554409]
[1749417299062,0.26549989,655.59,654.57,0.30554409]
[1749417299366,1.1041759,655.58,654.57,0.30554409]
[1749417299666,1.1041759,655.57,654.57,0.30554409]
[1749417299863,1.1041759,655.56,654.57,0.30554409]
[1749417300060,1.1041759,655.55,654.57,0.30554409]
[1749417300262,1.1041759,655.54,654.57,0.30554409]
[1749417300461,0.26549989,655.59,654.57,0.30554409]
[1749417300762,1.10431958,655.58,654.57,0.30554409]
[1749417300962,1.10431958,655.57,654.57,0.30554409]
[1749417301262,1.10431958,655.56,654.57,0.30554409]
[1749417301465,1.10431958,655.55,654.57,0.30554409]
[1749417301666,1.10431958,655.54,654.57,0.30554409]
[1749417301862,0.26549989,655.59,654.57,0.30554409]
[1749417302067,1.10463361,655.58,654.57,0.30554409]
[1749417302262,1.10463361,655.57,654.57,0.30554409]
[1749417302566,1.10463361,655.56,654.57,0.30554409]
[1749417302766,1.10463361,655.55,654.57,0.30554409]
[1749417302967,1.10463361,655.54,654.57,0.30554409]
[1749417303171,1.10463361,655.53,654.57,0.30554409]
[1749417303464,0.26549989,655.59,654.57,0.30554409]
[1749417303762,1.10475931,655.58,654.57,0.30554409]
[1749417303967,1.10475931,655.57,654.57,0.30554409]
[1749417304167,1.10475931,655.56,654.57,0.30554409]
[1749417304364,1.10475931,655.58,654.57,0.30554409]
[1749417304566,1.10475931,655.57,654.57,0.30554409]
[1749417304765,1.10475931,655.58,654.57,0.30554409]
[1749417305164,0.26549989,655.59,654.57,0.30554409]
[1749417309471,0.26549989,655.59,654.63,3.80364939]
[1749417309672,0.26549989,655.59,654.64,0.30551142]
[1749417309871,0.26549989,655.59,654.67,3.80364939]
[1749417310070,0.26549989,655.59,654.68,0.30549275]